[Event "*** Titled Tuesday Blitz"]
[Site "Chess.com"]
[Date "2020.02.04"]
[Round "6"]
[White "VincentKeymer"]
[Black "Andro2"]
[Result "1/2-1/2"]
[WhiteElo "2683"]
[BlackElo "2438"]
[TimeControl "180+2"]
[EndTime "10:26:45 PST"]
[Termination "Game drawn by repetition"]

1. Nf3 {[%clk 0:03:01.9]} 1... Nf6 {[%clk 0:03:00.2]} 2. e3 {[%clk 0:03:03.3]}
2... b6 {[%clk 0:02:49.4]} 3. b3 {[%clk 0:03:02.4]} 3... Bb7 {[%clk 0:02:50.5]}
4. Bb2 {[%clk 0:03:02.4]} 4... e6 {[%clk 0:02:52]} 5. d4 {[%clk 0:02:59.9]} 5...
Be7 {[%clk 0:02:53.4]} 6. Bd3 {[%clk 0:02:59.7]} 6... O-O {[%clk 0:02:53.6]} 7.
O-O {[%clk 0:02:59.8]} 7... d5 {[%clk 0:02:54]} 8. Nbd2 {[%clk 0:02:57.9]} 8...
Nbd7 {[%clk 0:02:54.2]} 9. Ne5 {[%clk 0:02:56.9]} 9... c5 {[%clk 0:02:53.6]} 10.
f4 {[%clk 0:02:57]} 10... Ne4 {[%clk 0:02:50.8]} 11. Nxd7 {[%clk 0:02:44]} 11...
Qxd7 {[%clk 0:02:51.3]} 12. dxc5 {[%clk 0:02:28.8]} 12... Bxc5 {[%clk
0:02:45.9]} 13. Rf3 {[%clk 0:02:10.2]} 13... f5 {[%clk 0:02:39.1]} 14. Rh3
{[%clk 0:01:58.3]} 14... Nxd2 {[%clk 0:02:31]} 15. Qxd2 {[%clk 0:01:53.3]} 15...
Rad8 {[%clk 0:02:19.2]} 16. Bd4 {[%clk 0:01:43.5]} 16... Qc7 {[%clk 0:02:13.2]}
17. a4 {[%clk 0:01:30.1]} 17... Rc8 {[%clk 0:02:02.5]} 18. Re1 {[%clk
0:01:21.4]} 18... Rf7 {[%clk 0:01:59.6]} 19. Rg3 {[%clk 0:01:11.5]} 19... a5
{[%clk 0:01:48]} 20. Rf1 {[%clk 0:01:02.7]} 20... Be7 {[%clk 0:01:34.2]} 21. Rh3
{[%clk 0:00:53.5]} 21... Bf6 {[%clk 0:01:28.8]} 22. Qf2 {[%clk 0:00:42.4]} 22...
g6 {[%clk 0:01:15.9]} 23. Rf3 {[%clk 0:00:36.7]} 23... e5 {[%clk 0:01:09.9]} 24.
fxe5 {[%clk 0:00:36.6]} 24... Bxe5 {[%clk 0:01:11]} 25. g4 {[%clk 0:00:32.9]}
25... Bxd4 {[%clk 0:01:02.6]} 26. exd4 {[%clk 0:00:32.8]} 26... f4 {[%clk
0:00:22.7]} 27. Rxf4 {[%clk 0:00:30.1]} 27... Rxf4 {[%clk 0:00:23.7]} 28. Qxf4
{[%clk 0:00:30.9]} 28... Qxf4 {[%clk 0:00:24.3]} 29. Rxf4 {[%clk 0:00:32.8]}
29... Re8 {[%clk 0:00:24.1]} 30. Rf6 {[%clk 0:00:32.7]} 30... Bc8 {[%clk
0:00:19.3]} 31. h3 {[%clk 0:00:19.7]} 31... Re6 {[%clk 0:00:20.2]} 32. Rxe6
{[%clk 0:00:19.9]} 32... Bxe6 {[%clk 0:00:21.3]} 33. Kf2 {[%clk 0:00:21.8]}
33... Kf7 {[%clk 0:00:21.9]} 34. Kg3 {[%clk 0:00:23.3]} 34... h6 {[%clk
0:00:21.9]} 35. Kf4 {[%clk 0:00:23]} 35... Kf6 {[%clk 0:00:23.3]} 36. c3 {[%clk
0:00:23.1]} 36... g5+ {[%clk 0:00:24.4]} 37. Ke3 {[%clk 0:00:24.3]} 37... Ke7
{[%clk 0:00:25.7]} 38. Kf3 {[%clk 0:00:23.5]} 38... Kd6 {[%clk 0:00:26]} 39. Bf5
{[%clk 0:00:24.6]} 39... Bf7 {[%clk 0:00:26.7]} 40. Ke3 {[%clk 0:00:25.4]} 40...
Be8 {[%clk 0:00:27.8]} 41. Kd3 {[%clk 0:00:26.7]} 41... b5 {[%clk 0:00:29.3]}
42. axb5 {[%clk 0:00:26.9]} 42... Bxb5+ {[%clk 0:00:30.8]} 43. Ke3 {[%clk
0:00:25.8]} 43... a4 {[%clk 0:00:28]} 44. bxa4 {[%clk 0:00:26.2]} 44... Bxa4
{[%clk 0:00:28.7]} 45. Bd3 {[%clk 0:00:27.6]} 45... Bb3 {[%clk 0:00:29.3]} 46.
Bb5 {[%clk 0:00:27.9]} 46... Ba2 {[%clk 0:00:28.5]} 47. Be8 {[%clk 0:00:28.7]}
47... Bc4 {[%clk 0:00:28.1]} 48. Bf7 {[%clk 0:00:29.8]} 48... Ba2 {[%clk
0:00:26.6]} 49. Bg6 {[%clk 0:00:30.7]} 49... Bb3 {[%clk 0:00:26.5]} 50. Bd3
{[%clk 0:00:31.7]} 50... Ba2 {[%clk 0:00:26.9]} 51. Kd2 {[%clk 0:00:33.1]} 51...
Bb3 {[%clk 0:00:27.4]} 52. Kc1 {[%clk 0:00:34.5]} 52... Kc6 {[%clk 0:00:27.2]}
53. Kb2 {[%clk 0:00:35.8]} 53... Bd1 {[%clk 0:00:27.5]} 54. Ka3 {[%clk 0:00:29]}
54... Bf3 {[%clk 0:00:27.5]} 55. Bf1 {[%clk 0:00:29.9]} 55... Kb6 {[%clk
0:00:23.9]} 56. Kb4 {[%clk 0:00:31.8]} 56... Kc6 {[%clk 0:00:23.2]} 57. Ka5
{[%clk 0:00:32.5]} 57... Be4 {[%clk 0:00:22.7]} 58. Kb4 {[%clk 0:00:31.1]} 58...
Bf3 {[%clk 0:00:22.9]} 59. Ka5 {[%clk 0:00:23.8]} 59... Be4 {[%clk 0:00:23.4]}
60. Ka6 {[%clk 0:00:25.2]} 60... Bf3 {[%clk 0:00:21.5]} 61. Ka7 {[%clk
0:00:26.1]} 61... Kc7 {[%clk 0:00:22.7]} 62. Ka6 {[%clk 0:00:22.7]} 62... Kc6
{[%clk 0:00:24]} 63. Bb5+ {[%clk 0:00:23.7]} 63... Kc7 {[%clk 0:00:23.3]} 64. c4
{[%clk 0:00:20.5]} 64... dxc4 {[%clk 0:00:22.7]} 65. Bxc4 {[%clk 0:00:22.4]}
65... Bg2 {[%clk 0:00:24]} 66. Kb5 {[%clk 0:00:23.5]} 66... Kd6 {[%clk
0:00:25.2]} 67. Kb4 {[%clk 0:00:20.9]} 67... Bxh3 {[%clk 0:00:26.5]} 68. Be2
{[%clk 0:00:22.3]} 68... Bg2 {[%clk 0:00:26.3]} 69. Kc3 {[%clk 0:00:23.5]} 69...
Kd5 {[%clk 0:00:26]} 70. Kd3 {[%clk 0:00:24.7]} 70... Be4+ {[%clk 0:00:27.1]}
71. Ke3 {[%clk 0:00:26.6]} 71... Bg2 {[%clk 0:00:26.4]} 72. Bd1 {[%clk 0:00:27]}
72... Bh1 {[%clk 0:00:24.7]} 73. Bb3+ {[%clk 0:00:28]} 73... Kd6 {[%clk
0:00:25.7]} 74. Ba2 {[%clk 0:00:29.1]} 74... Bc6 {[%clk 0:00:24.9]} 75. Bb1
{[%clk 0:00:30.4]} 75... Bd7 {[%clk 0:00:24.9]} 76. Kf3 {[%clk 0:00:26.2]} 76...
Kd5 {[%clk 0:00:22.9]} 77. Bf5 {[%clk 0:00:25.3]} 77... Be8 {[%clk 0:00:19.8]}
78. Ke3 {[%clk 0:00:25.8]} 78... Kd6 {[%clk 0:00:20.6]} 79. Kd3 {[%clk 0:00:25]}
79... Bc6 {[%clk 0:00:21]} 80. Ke3 {[%clk 0:00:25.1]} 80... Bd5 {[%clk
0:00:21.7]} 81. Bc8 {[%clk 0:00:25.9]} 81... Bf7 {[%clk 0:00:20.4]} 82. Ke4
{[%clk 0:00:25.8]} 82... Bg6+ {[%clk 0:00:21.6]} 83. Bf5 {[%clk 0:00:25.9]}
83... Bf7 {[%clk 0:00:23.1]} 84. Bh7 {[%clk 0:00:24.7]} 84... Be6 {[%clk
0:00:23]} 85. Bf5 {[%clk 0:00:25.8]} 85... Bd5+ {[%clk 0:00:24.2]} 86. Kd3
{[%clk 0:00:26.1]} 86... Bf3 {[%clk 0:00:24.7]} 87. Ke3 {[%clk 0:00:27.4]} 87...
Bd1 {[%clk 0:00:25]} 88. Bc8 {[%clk 0:00:25.9]} 88... Kd5 {[%clk 0:00:24]} 89.
Bb7+ {[%clk 0:00:24.6]} 89... Kd6 {[%clk 0:00:24.8]} 90. Bf3 {[%clk 0:00:25.6]}
90... Bc2 {[%clk 0:00:25.2]} 91. Kd2 {[%clk 0:00:24.4]} 91... Bg6 {[%clk
0:00:23.9]} 92. Kc3 {[%clk 0:00:25.5]} 92... Bf7 {[%clk 0:00:23.9]} 93. Kb4
{[%clk 0:00:24.1]} 93... Be6 {[%clk 0:00:24.3]} 94. Kc3 {[%clk 0:00:23]} 94...
Bf7 {[%clk 0:00:25.1]} 95. Kd3 {[%clk 0:00:24.4]} 95... Be6 {[%clk 0:00:22.3]}
96. Ke4 {[%clk 0:00:21.2]} 96... Bd5+ {[%clk 0:00:22.9]} 97. Ke3 {[%clk
0:00:22.5]} 97... Be6 {[%clk 0:00:23.8]} 98. Kd2 {[%clk 0:00:23.7]} 98... Bf7
{[%clk 0:00:24.4]} 99. Kc3 {[%clk 0:00:24.4]} 99... Be6 {[%clk 0:00:23.6]} 100.
Kd3 {[%clk 0:00:25.6]} 100... Bf7 {[%clk 0:00:22.6]} 101. Be2 {[%clk 0:00:26.8]}
101... Bg6+ {[%clk 0:00:20.6]} 102. Ke3 {[%clk 0:00:26.7]} 102... Bc2 {[%clk
0:00:20.8]} 103. Bd3 {[%clk 0:00:25.7]} 103... Bd1 {[%clk 0:00:21.8]} 104. Be2
{[%clk 0:00:25.8]} 104... Bc2 {[%clk 0:00:22.8]} 105. Bf3 {[%clk 0:00:27]}
105... Bb1 {[%clk 0:00:17.8]} 106. Be4 {[%clk 0:00:23.1]} 106... Ba2 {[%clk
0:00:18.3]} 107. Bd3 {[%clk 0:00:22]} 107... Bd5 {[%clk 0:00:18.9]} 108. Bc2
{[%clk 0:00:22]} 108... Be6 {[%clk 0:00:19.5]} 109. Bd1 {[%clk 0:00:23.9]}
109... Bd5 {[%clk 0:00:19]} 110. Kd3 {[%clk 0:00:24.5]} 110... Be6 {[%clk
0:00:18.7]} 111. Kc3 {[%clk 0:00:25]} 111... Bd7 {[%clk 0:00:18.6]} 112. Bf3
{[%clk 0:00:25.4]} 112... Be6 {[%clk 0:00:19.2]} 113. Be2 {[%clk 0:00:26.2]}
113... Bd7 {[%clk 0:00:20]} 114. Bf3 {[%clk 0:00:24.4]} 114... Be6 {[%clk
0:00:20.9]} 1/2-1/2

[Event "*** Titled Tuesday Blitz"]
[Site "Chess.com"]
[Date "2020.02.04"]
[Round "7"]
[White "Mikhail_Golubev"]
[Black "OhanyanEminChess"]
[Result "1-0"]
[WhiteElo "2547"]
[BlackElo "2457"]
[TimeControl "180+2"]
[EndTime "10:28:17 PST"]
[Termination "Mikhail_Golubev won by checkmate"]

1. e4 {[%clk 0:03:01.9]} 1... e5 {[%clk 0:03:01]} 2. Nf3 {[%clk 0:03:01.9]} 2...
Nc6 {[%clk 0:03:02.1]} 3. Bc4 {[%clk 0:03:02.7]} 3... Nf6 {[%clk 0:03:03]} 4.
Ng5 {[%clk 0:03:03.3]} 4... d5 {[%clk 0:03:02.6]} 5. exd5 {[%clk 0:03:02.3]}
5... Na5 {[%clk 0:03:02.4]} 6. Bb5+ {[%clk 0:03:03.5]} 6... Bd7 {[%clk
0:02:49.8]} 7. Qe2 {[%clk 0:03:02.5]} 7... Bxb5 {[%clk 0:02:42.2]} 8. Qxb5+
{[%clk 0:03:01.4]} 8... c6 {[%clk 0:02:43.6]} 9. dxc6 {[%clk 0:02:59.5]} 9...
Nxc6 {[%clk 0:02:45.5]} 10. Qxb7 {[%clk 0:02:50.9]} 10... Nd4 {[%clk 0:02:45.3]}
11. Qxf7# {[%clk 0:02:51.3]} 1-0

[Event "*** Titled Tuesday Blitz"]
[Site "Chess.com"]
[Date "2020.02.04"]
[Round "7"]
[White "Anton_Demchenko"]
[Black "Volodar_Murzin"]
[Result "1-0"]
[WhiteElo "2963"]
[BlackElo "2610"]
[TimeControl "180+2"]
[EndTime "10:31:09 PST"]
[Termination "Anton_Demchenko won by resignation"]

1. e4 {[%clk 0:03:01.9]} 1... c6 {[%clk 0:02:59.8]} 2. Nf3 {[%clk 0:02:56]} 2...
d5 {[%clk 0:03:01.7]} 3. d3 {[%clk 0:02:53.8]} 3... dxe4 {[%clk 0:03:01.3]} 4.
dxe4 {[%clk 0:02:55]} 4... Qxd1+ {[%clk 0:03:02.7]} 5. Kxd1 {[%clk 0:02:56.9]}
5... Nd7 {[%clk 0:03:03.3]} 6. Nfd2 {[%clk 0:02:53.2]} 6... Ngf6 {[%clk
0:03:01.3]} 7. f3 {[%clk 0:02:49]} 7... e5 {[%clk 0:03:01]} 8. c3 {[%clk
0:02:48]} 8... Nb6 {[%clk 0:02:58.4]} 9. a4 {[%clk 0:02:44.3]} 9... a5 {[%clk
0:02:52.4]} 10. Kc2 {[%clk 0:02:41.5]} 10... Be6 {[%clk 0:02:52.9]} 11. b3
{[%clk 0:02:29.5]} 11... Be7 {[%clk 0:02:44.1]} 12. Be2 {[%clk 0:02:30.3]} 12...
Nfd7 {[%clk 0:02:38]} 13. Na3 {[%clk 0:02:07.7]} 13... f6 {[%clk 0:02:28.1]} 14.
Rd1 {[%clk 0:02:06.6]} 14... Kf7 {[%clk 0:02:17.1]} 15. Ndc4 {[%clk 0:02:01.9]}
15... Nxc4 {[%clk 0:02:14.5]} 16. Bxc4 {[%clk 0:02:01.8]} 16... Nb6 {[%clk
0:02:04.3]} 17. Bxe6+ {[%clk 0:01:51.1]} 17... Kxe6 {[%clk 0:02:06.2]} 18. Be3
{[%clk 0:01:52.6]} 18... Kf7 {[%clk 0:02:08.1]} 19. Bxb6 {[%clk 0:01:52.8]}
19... Ke6 {[%clk 0:02:10]} 20. Nc4 {[%clk 0:01:52.6]} 20... Ra6 {[%clk
0:01:43.7]} 21. Rd3 {[%clk 0:01:48.5]} 1-0

[Event "*** Titled Tuesday Blitz"]
[Site "Chess.com"]
[Date "2020.02.04"]
[Round "7"]
[White "Kostina_Nadezhda"]
[Black "zurzan"]
[Result "1-0"]
[WhiteElo "2170"]
[BlackElo "1988"]
[TimeControl "180+2"]
[EndTime "10:31:12 PST"]
[Termination "Kostina_Nadezhda won by resignation"]

1. e4 {[%clk 0:03:01.9]} 1... d6 {[%clk 0:03:01]} 2. d4 {[%clk 0:03:02.2]} 2...
Nf6 {[%clk 0:03:01.9]} 3. Nc3 {[%clk 0:03:02.5]} 3... Nbd7 {[%clk 0:03:02.7]} 4.
Nf3 {[%clk 0:03:02.2]} 4... e5 {[%clk 0:03:03.2]} 5. dxe5 {[%clk 0:03:02.6]}
5... dxe5 {[%clk 0:03:03.9]} 6. Bc4 {[%clk 0:03:02.3]} 6... Be7 {[%clk
0:03:04.7]} 7. Bxf7+ {[%clk 0:02:54.9]} 7... Kxf7 {[%clk 0:03:05.2]} 8. Ng5+
{[%clk 0:02:55.7]} 8... Kg8 {[%clk 0:03:00.9]} 9. Ne6 {[%clk 0:02:56]} 9... Qe8
{[%clk 0:02:59.1]} 10. Nxc7 {[%clk 0:02:55.3]} 10... Qg6 {[%clk 0:02:53.2]} 11.
Nxa8 {[%clk 0:02:31.8]} 11... Qxg2 {[%clk 0:02:52.8]} 12. Rf1 {[%clk 0:02:32.8]}
12... Ng4 {[%clk 0:02:42.8]} 13. Qd5+ {[%clk 0:02:30.6]} 13... Kf8 {[%clk
0:02:40.2]} 14. Qc4 {[%clk 0:02:23]} 14... Bc5 {[%clk 0:02:34]} 15. Be3 {[%clk
0:02:21.2]} 15... Bxe3 {[%clk 0:02:21.2]} 16. fxe3+ {[%clk 0:02:22]} 16... Ke7
{[%clk 0:02:00.3]} 17. Nd5+ {[%clk 0:02:12.8]} 17... Kd6 {[%clk 0:01:37.6]} 18.
O-O-O {[%clk 0:01:51.3]} 1-0

[Event "*** Titled Tuesday Blitz"]
[Site "Chess.com"]
[Date "2020.02.04"]
[Round "7"]
[White "BeanScreen"]
[Black "cancrushyou"]
[Result "1-0"]
[WhiteElo "2555"]
[BlackElo "2477"]
[TimeControl "180+2"]
[EndTime "10:32:18 PST"]
[Termination "BeanScreen won by resignation"]

1. e4 {[%clk 0:03:01.7]} 1... c5 {[%clk 0:03:01]} 2. Nf3 {[%clk 0:03:02.8]} 2...
e6 {[%clk 0:03:02.4]} 3. d4 {[%clk 0:03:04.1]} 3... cxd4 {[%clk 0:03:04.3]} 4.
Nxd4 {[%clk 0:03:05.1]} 4... Nc6 {[%clk 0:03:05.9]} 5. Nc3 {[%clk 0:03:06.1]}
5... Qc7 {[%clk 0:03:07.5]} 6. g3 {[%clk 0:03:07.2]} 6... a6 {[%clk 0:03:07.1]}
7. Bg2 {[%clk 0:03:07.6]} 7... Nf6 {[%clk 0:03:07]} 8. O-O {[%clk 0:03:09]} 8...
Nxd4 {[%clk 0:03:08.5]} 9. Qxd4 {[%clk 0:03:10.2]} 9... Bc5 {[%clk 0:03:10.1]}
10. Bf4 {[%clk 0:03:11.6]} 10... d6 {[%clk 0:03:11.1]} 11. Qd3 {[%clk
0:03:12.7]} 11... h6 {[%clk 0:03:06]} 12. Rad1 {[%clk 0:03:09.2]} 12... O-O
{[%clk 0:03:02.5]} 13. Bxd6 {[%clk 0:03:08.1]} 13... Bxd6 {[%clk 0:03:01.5]} 14.
Qxd6 {[%clk 0:03:10]} 14... Qa5 {[%clk 0:02:58.4]} 15. e5 {[%clk 0:02:57.4]}
15... Nd7 {[%clk 0:02:59.1]} 16. f4 {[%clk 0:02:51.9]} 16... Rb8 {[%clk
0:02:49.1]} 17. Kh1 {[%clk 0:02:46.8]} 17... b5 {[%clk 0:02:49.9]} 18. Bc6
{[%clk 0:02:42.5]} 18... b4 {[%clk 0:02:45.3]} 19. Ne4 {[%clk 0:02:33.7]} 19...
Rb6 {[%clk 0:02:27]} 20. Qc7 {[%clk 0:02:22.4]} 20... Nb8 {[%clk 0:01:47.2]} 21.
Rd8 {[%clk 0:02:06.4]} 21... Rxd8 {[%clk 0:01:45.7]} 22. Qxd8+ {[%clk
0:02:08.3]} 22... Kh7 {[%clk 0:01:46.7]} 23. Ng5+ {[%clk 0:01:41.5]} 23... hxg5
{[%clk 0:01:44.9]} 24. Be4+ {[%clk 0:01:42.7]} 24... g6 {[%clk 0:01:20.6]} 25.
fxg5 {[%clk 0:01:43.8]} 25... Rb7 {[%clk 0:01:06.5]} 26. Qxa5 {[%clk 0:01:43.4]}
1-0

[Event "*** Titled Tuesday Blitz"]
[Site "Chess.com"]
[Date "2020.02.04"]
[Round "7"]
[White "VALPARAISO37"]
[Black "marabu44"]
[Result "1-0"]
[WhiteElo "2229"]
[BlackElo "2281"]
[TimeControl "180+2"]
[EndTime "10:33:03 PST"]
[Termination "VALPARAISO37 won by resignation"]

1. d4 {[%clk 0:02:54.3]} 1... d5 {[%clk 0:02:59.6]} 2. c4 {[%clk 0:02:54]} 2...
c6 {[%clk 0:03:00.5]} 3. Nc3 {[%clk 0:02:49.3]} 3... e6 {[%clk 0:03:01.2]} 4. e3
{[%clk 0:02:49.8]} 4... f5 {[%clk 0:03:01.5]} 5. g4 {[%clk 0:02:50]} 5... Nf6
{[%clk 0:02:45.9]} 6. gxf5 {[%clk 0:02:49.6]} 6... exf5 {[%clk 0:02:46.3]} 7.
Nf3 {[%clk 0:02:49.9]} 7... Bb4 {[%clk 0:02:45.4]} 8. Bd2 {[%clk 0:02:48.2]}
8... Bxc3 {[%clk 0:02:44.5]} 9. Bxc3 {[%clk 0:02:48]} 9... Ne4 {[%clk
0:02:46.2]} 10. Qb3 {[%clk 0:02:48.5]} 10... O-O {[%clk 0:02:28.8]} 11. Bd3
{[%clk 0:02:48]} 11... Kh8 {[%clk 0:02:28.8]} 12. Ne5 {[%clk 0:02:43.5]} 12...
Nd7 {[%clk 0:02:24.2]} 13. Nxd7 {[%clk 0:02:41]} 13... Qxd7 {[%clk 0:02:24.3]}
14. h4 {[%clk 0:02:33]} 14... dxc4 {[%clk 0:02:18.7]} 15. Bxc4 {[%clk
0:02:31.5]} 15... b5 {[%clk 0:02:19.5]} 16. Bd3 {[%clk 0:02:31.3]} 16... Bb7
{[%clk 0:02:16.2]} 17. h5 {[%clk 0:02:24.8]} 17... a6 {[%clk 0:02:02.7]} 18. h6
{[%clk 0:02:23.9]} 18... Qd5 {[%clk 0:02:01.6]} 19. hxg7+ {[%clk 0:02:08.8]}
19... Kxg7 {[%clk 0:02:02.2]} 20. Bxe4 {[%clk 0:02:08.3]} 20... fxe4 {[%clk
0:01:56.8]} 21. Ke2 {[%clk 0:02:05.5]} 21... Rf3 {[%clk 0:01:48.8]} 22. Rag1+
{[%clk 0:02:05.2]} 22... Kh8 {[%clk 0:01:49.8]} 23. Rg2 {[%clk 0:01:57.6]} 23...
Rg8 {[%clk 0:01:42.8]} 24. Rgh2 {[%clk 0:01:51.9]} 24... Rg7 {[%clk 0:01:27.9]}
25. Ke1 {[%clk 0:01:50.3]} 25... Kg8 {[%clk 0:01:21.3]} 26. Rh5 {[%clk
0:01:42.7]} 26... Qxb3 {[%clk 0:01:17.4]} 27. axb3 {[%clk 0:01:42.9]} 27... Rgf7
{[%clk 0:01:13.6]} 28. d5 {[%clk 0:01:40.8]} 28... Rxf2 {[%clk 0:01:00.7]} 29.
Bb4 {[%clk 0:01:35.9]} 29... cxd5 {[%clk 0:00:54.9]} 30. Rg1+ {[%clk 0:01:34.9]}
30... Rg7 {[%clk 0:00:52.2]} 31. Rxg7+ {[%clk 0:01:33.2]} 1-0

[Event "*** Titled Tuesday Blitz"]
[Site "Chess.com"]
[Date "2020.02.04"]
[Round "7"]
[White "Coiote53"]
[Black "obliviate12"]
[Result "0-1"]
[WhiteElo "2614"]
[BlackElo "2865"]
[TimeControl "180+2"]
[EndTime "10:33:26 PST"]
[Termination "obliviate12 won by resignation"]

1. e4 {[%clk 0:03:01.9]} 1... c5 {[%clk 0:03:00.8]} 2. Nf3 {[%clk 0:03:03.1]}
2... d6 {[%clk 0:03:02.3]} 3. Nc3 {[%clk 0:03:05]} 3... Nf6 {[%clk 0:03:02.5]}
4. d4 {[%clk 0:03:06.6]} 4... cxd4 {[%clk 0:03:03.4]} 5. Nxd4 {[%clk 0:03:08.5]}
5... a6 {[%clk 0:03:04.9]} 6. Be3 {[%clk 0:03:09.2]} 6... e5 {[%clk 0:03:04.4]}
7. Nb3 {[%clk 0:03:10.6]} 7... Be6 {[%clk 0:03:05.1]} 8. f3 {[%clk 0:03:12]}
8... h5 {[%clk 0:03:05.9]} 9. Qd2 {[%clk 0:03:13.4]} 9... Nbd7 {[%clk
0:03:06.5]} 10. Nd5 {[%clk 0:03:14.6]} 10... Bxd5 {[%clk 0:03:04.8]} 11. exd5
{[%clk 0:03:16.5]} 11... g6 {[%clk 0:03:06.7]} 12. O-O-O {[%clk 0:03:17.3]}
12... Bg7 {[%clk 0:03:08]} 13. Kb1 {[%clk 0:03:18.4]} 13... Qc7 {[%clk
0:03:07.7]} 14. c4 {[%clk 0:03:13.7]} 14... a5 {[%clk 0:02:28.7]} 15. g3 {[%clk
0:02:39.3]} 15... O-O {[%clk 0:02:24.2]} 16. Rc1 {[%clk 0:02:35.9]} 16... a4
{[%clk 0:02:15.3]} 17. Na1 {[%clk 0:02:36.4]} 17... e4 {[%clk 0:02:16.4]} 18. f4
{[%clk 0:02:10.5]} 18... Ng4 {[%clk 0:02:16.4]} 19. Bd4 {[%clk 0:02:10.5]} 19...
e3 {[%clk 0:02:06]} 20. Bxe3 {[%clk 0:02:00.5]} 20... Nxe3 {[%clk 0:02:06]} 21.
Qxe3 {[%clk 0:02:02.4]} 21... Rfe8 {[%clk 0:02:07.9]} 22. Qd2 {[%clk 0:01:58.4]}
22... a3 {[%clk 0:02:05.5]} 23. b4 {[%clk 0:01:52.9]} 23... Ra4 {[%clk
0:01:39.7]} 24. Nb3 {[%clk 0:01:50.3]} 24... Qb6 {[%clk 0:01:31.8]} 25. c5
{[%clk 0:01:50]} 25... dxc5 {[%clk 0:01:32.4]} 26. bxc5 {[%clk 0:01:41.4]} 26...
Qf6 {[%clk 0:00:58.9]} 27. Bb5 {[%clk 0:01:33.5]} 27... Rb4 {[%clk 0:00:59.7]}
28. Bxd7 {[%clk 0:01:26.1]} 28... Qa1+ {[%clk 0:00:58.6]} 29. Kc2 {[%clk
0:01:27.7]} 29... Qxa2+ {[%clk 0:01:00.5]} 30. Kd1 {[%clk 0:01:29.3]} 30...
Qxb3+ {[%clk 0:01:01.4]} 31. Rc2 {[%clk 0:01:30.8]} 31... Qf3+ {[%clk
0:01:00.5]} 0-1

[Event "*** Titled Tuesday Blitz"]
[Site "Chess.com"]
[Date "2020.02.04"]
[Round "7"]
[White "heyiampotato"]
[Black "arminmusovic"]
[Result "0-1"]
[WhiteElo "2465"]
[BlackElo "2549"]
[TimeControl "180+2"]
[EndTime "10:33:39 PST"]
[Termination "arminmusovic won on time"]

1. d4 {[%clk 0:02:59.7]} 1... d5 {[%clk 0:02:59.9]} 2. c4 {[%clk 0:03:00.9]}
2... c5 {[%clk 0:03:01.1]} 3. cxd5 {[%clk 0:02:43.7]} 3... Nf6 {[%clk 0:03:01]}
4. Nf3 {[%clk 0:02:34.9]} 4... cxd4 {[%clk 0:03:00.8]} 5. Qxd4 {[%clk
0:02:32.5]} 5... Qxd5 {[%clk 0:03:01.9]} 6. Nc3 {[%clk 0:02:32.8]} 6... Qxd4
{[%clk 0:03:02.8]} 7. Nxd4 {[%clk 0:02:34.7]} 7... a6 {[%clk 0:03:04.7]} 8. g3
{[%clk 0:02:35.1]} 8... e5 {[%clk 0:03:01]} 9. Nb3 {[%clk 0:02:32.9]} 9... Bb4
{[%clk 0:03:00.9]} 10. Bg2 {[%clk 0:02:33]} 10... Nc6 {[%clk 0:02:58.2]} 11. O-O
{[%clk 0:02:33.4]} 11... Be6 {[%clk 0:02:58.9]} 12. Na4 {[%clk 0:02:31.1]} 12...
Bxb3 {[%clk 0:02:47.4]} 13. axb3 {[%clk 0:02:31.2]} 13... Nd4 {[%clk 0:02:48.4]}
14. Bxb7 {[%clk 0:02:15.7]} 14... Ra7 {[%clk 0:02:47.2]} 15. Bg2 {[%clk
0:02:14.4]} 15... Nxe2+ {[%clk 0:02:45.5]} 16. Kh1 {[%clk 0:02:15.2]} 16... Nxc1
{[%clk 0:02:46.6]} 17. Raxc1 {[%clk 0:02:15.6]} 17... O-O {[%clk 0:02:44.6]} 18.
Rc4 {[%clk 0:02:05.1]} 18... a5 {[%clk 0:02:44.5]} 19. Nc5 {[%clk 0:01:52]}
19... g6 {[%clk 0:02:30.6]} 20. Rd1 {[%clk 0:01:47.8]} 20... Re8 {[%clk
0:02:27.8]} 21. Kg1 {[%clk 0:01:38.2]} 21... Rae7 {[%clk 0:02:17.4]} 22. Rd6
{[%clk 0:01:33.9]} 22... Kg7 {[%clk 0:02:14]} 23. Rd1 {[%clk 0:01:04.8]} 23...
e4 {[%clk 0:02:12.5]} 24. Na6 {[%clk 0:00:52]} 24... e3 {[%clk 0:01:56.3]} 25.
fxe3 {[%clk 0:00:51.9]} 25... Rxe3 {[%clk 0:01:54.6]} 26. Nxb4 {[%clk 0:00:53]}
26... axb4 {[%clk 0:01:56.5]} 27. Rxb4 {[%clk 0:00:52.4]} 27... Re2 {[%clk
0:01:57.4]} 28. Rb1 {[%clk 0:00:33.3]} 28... Rd2 {[%clk 0:01:50.5]} 29. Bf1
{[%clk 0:00:23.8]} 29... Ne4 {[%clk 0:01:45.4]} 30. Re1 {[%clk 0:00:14.1]} 30...
Ng5 {[%clk 0:01:46.7]} 0-1